[Event "44th Chess Olympiad Open 2022"]
[Site "Chennai"]
[Date "2022.08.08"]
[Round "10.4"]
[White "Maghsoodloo, Parham"]
[Black "Harikrishna, Pentala"]
[Result "1-0"]
[WhiteElo "2701"]
[BlackElo "2720"]
[Annotator "TA"]
[PlyCount "119"]
[EventDate "2022.??.??"]
[TimeControl "60"]

{[%evp 9,119,-1,23,19,17,19,16,17,28,16,46,26,31,27,29,17,26,22,47,-5,29,55,47,
23,32,11,20,0,10,11,44,25,47,23,36,29,20,42,32,28,37,32,24,30,50,29,88,105,123,
149,245,243,297,293,312,304,287,306,430,418,398,308,307,300,299,117,116,116,
115,75,85,45,45,8,8,8,8,8,8,8,44,79,132,153,166,159,180,162,141,84,174,47,100,
0,8,0,54,27,47,34,1780,1664,29972,29973,29973,29974,29981,29982,29982,29972,
29981,29982]} 1. d4 {[%emt 0:00:04] ChessBase II} d5 {[%emt 0:00:05]} 2. c4 {
[%emt 0:00:04]} c6 {[%emt 0:00:03]} 3. e3 {[%emt 0:00:05]} (3. Nf3 Nf6 4. e3
Bf5 5. Nc3 e6 6. Nh4 Be4 7. f3 Bg6 8. Qb3 Qb6 9. Nxg6 hxg6 10. Bd2 Nbd7 11.
O-O-O Qxb3 12. axb3 Bb4 13. Kc2 O-O-O 14. Bd3 a6 15. Be1 Bd6 16. h4 Ne8 17. e4
Nc7 {0-1 (74) Maghsoodloo,P (2716)-Harikrishna,P (2701) Prague 2022}) 3... Nf6
{[%emt 0:00:12]} 4. Nc3 {[%emt 0:00:06]} Bf5 {[%emt 0:00:06]} 5. f3 {[%emt 0:
00:00] [#]} h5 $146 {[%emt 0:05:54]} ({Predecessor:} 5... e6 6. g4 Bg6 7. h4 h6
8. h5 Bh7 9. Bd3 Bxd3 10. Qxd3 Nbd7 11. Nge2 a6 12. Bd2 dxc4 13. Qxc4 {1-0 (33)
Kozul,Z (2568)-Benitah,Y (2401) Aix les Bains 2011 CBM 142 Extra [ChessBase II]
}) 6. Bd3 {[%emt 0:06:16] D10: Slav Defence: 3 cxd5 (without early Nf3) and 3
Nc3.} Bxd3 {[%emt 0:00:00]} 7. Qxd3 {[%emt 0:03:21]} e6 {[%emt 0:04:19]} 8.
Nge2 {[%emt 0:03:22] The position is equal.} dxc4 {[%emt 0:00:00]} 9. Qxc4 {
[%emt 0:00:00]} Nbd7 {[%emt 0:01:50]} (9... c5 {is interesting.} 10. O-O cxd4
11. Nxd4 a6) 10. e4 {[%emt 0:05:18]} Rc8 {[%emt 0:06:55]} 11. a4 {[%emt 0:00:
00]} Qa5 {[%emt 0:17:02][%cal Yb7b5]} 12. Bd2 {[%emt 0:00:34]} Be7 {[%emt 0:00:
00]} 13. O-O {[%emt 0:04:17]} O-O {[%emt 0:04:47]} 14. Rab1 {[%emt 0:12:01]} (
14. Nf4 $14) 14... e5 15. b4 {[%emt 0:09:30]} Qc7 {[%emt 0:08:24]} 16. Be3 {
[%emt 0:00:34]} Rfd8 {[%emt 0:05:15]} 17. Rfd1 {[%emt 0:01:22]} exd4 {[%emt 0:
00:00]} 18. Nxd4 {[%emt 0:00:25]} (18. Qxd4 c5 19. bxc5 Bxc5 $17) 18... Ne5 {
[%emt 0:00:03]} 19. Qe2 {[%emt 0:00:32]} Ng6 {[%emt 0:08:38]} (19... a6 {
is more complex.} 20. Nf5 Bf8 21. Bf4 g6) 20. Nf5 {[%emt 0:08:07]} (20. a5 {
with more complications.} c5 21. Ncb5 Qe5 22. Nxa7 Ra8 23. Nac6) 20... Rxd1+ {
[%emt 0:00:00]} 21. Qxd1 {[%emt 0:01:19]} Bf8 {[%emt 0:00:00]} 22. a5 {[%emt 0:
00:00]} (22. Bxa7 $2 b6 23. Bxb6 (23. e5 $2 Qxe5 24. a5 bxa5 $19) 23... Qxb6+
24. Qd4 Qxd4+ 25. Nxd4 c5 $19) 22... b6 {[%emt 0:02:41]} 23. axb6 {[%emt 0:00:
00]} axb6 {[%emt 0:00:00]} 24. b5 {[%emt 0:03:53]} Ne7 {[%emt 0:05:28]} 25. Nd4
{[%emt 0:03:37]} (25. Nd6 Rd8 26. e5 Ng6 $1 27. bxc6 (27. exf6 Bxd6 28. Kf1
Bxh2 $17) 27... Bxd6 28. exd6 Rxd6 $15) 25... c5 {[%emt 0:00:00]} 26. Nde2 {
[%emt 0:00:18]} Ng6 {[%emt 0:01:29]} 27. h3 {[%emt 0:03:13]} c4 {[%emt 0:00:09]
} (27... Rd8 $11 {keeps the balance.} 28. Qc2 Qc8) 28. Na4 $16 {[%emt 0:02:20]
[%cal Yc3a4,Ya4b6,Yb6c4]} Nd7 {[%emt 0:02:27]} 29. Nec3 {[%emt 0:00:00]} Bc5 {
[%emt 0:08:08]} (29... Ra8 $16 30. Qd5 (30. Nd5 Qg3 $14) 30... Ra7) 30. Bxc5 $1
$18 {[%emt 0:00:44]} Nxc5 {[%emt 0:00:22]} 31. Nd5 {[%emt 0:04:06][%csl Yb6,
Yc7]} Qg3 {[%emt 0:00:00]} 32. Naxb6 {[%emt 0:00:00]} Rb8 {[%emt 0:00:00][%cal
Yb8b6]} 33. Nxc4 {[%emt 0:00:06]} Nh4 {[%emt 0:00:12]} (33... Ne6 {keeps
fighting.} 34. Kh1 Nef4 35. Nxf4 Nxf4) 34. Nce3 {[%emt 0:02:22]} Ne6 {[%emt 0:
00:00]} 35. Ne7+ {[%emt 0:02:13]} Kh7 {[%emt 0:00:00] [#] White must now
prevent ...Nf4.} 36. N7f5 $1 {[%emt 0:00:04]} Qg5 {[%emt 0:05:37]} 37. Nxh4 {
[%emt 0:05:39]} (37. Kh1 $18 {is the precise move to win.}) 37... Qxe3+ $16 {
[%emt 0:00:00]} 38. Kh1 {[%emt 0:00:35] Threatens to win with Qd7.} g6 {
[%emt 0:00:31]} 39. Qd6 {[%emt 0:01:39]} Rb6 {[%emt 0:02:45]} 40. Qe5 {[%emt 0:
00:00]} Qd3 {[%emt 0:10:51]} 41. Qa1 {[%emt 0:10:31]} Rxb5 {[%emt 0:00:00]} 42.
Rxb5 {[%emt 0:00:00]} Qxb5 $11 {[%emt 0:00:12] Endgame KQN-KQN} 43. Qf6 {
[%emt 0:04:41]} Qd7 {[%emt 0:08:19]} 44. Kh2 {[%emt 0:06:27]} Kg8 {[%emt 0:00:
00]} 45. f4 {[%emt 0:07:15]} Nd4 {[%emt 0:07:03] [#]} (45... Qc6 $142) 46. Nxg6
$1 $16 {[%emt 0:00:58]} fxg6 {[%emt 0:00:00]} 47. Qxg6+ {[%emt 0:00:21]} Kf8 {
[%emt 0:00:42]} 48. Qxh5 {[%emt 0:00:15] Qh8+ is the strong threat.} Qd6 {
[%emt 0:00:00] [#]} 49. e5 {[%emt 0:00:51]} (49. Kg3 $142 $1) 49... Qd5 {
[%emt 0:00:00]} (49... Qe6 $16 50. Qh8+ Ke7 51. Qh7+ Kf8) 50. Qg6 {[%emt 0:01:
47]} (50. Qh6+ $18 Ke7 51. Qh7+ Ke8 52. Qd3) 50... Ne6 $1 $14 {[%emt 0:00:00]}
51. h4 {[%emt 0:00:38]} ({White should play} 51. Qf5+ $16 Kg8 52. Qg6+ Kf8 53.
Qh6+ (53. h4 Qc4 $16) 53... Kg8 54. Qg6+ Kf8) 51... Qc4 $1 $11 {[%emt 0:00:00]}
52. Qh6+ {[%emt 0:00:45]} Ng7 {[%emt 0:00:00]} (52... Kg8 $11) 53. h5 {[%emt 0:
00:40] And now Qf6+ would win.} ({Much weaker is} 53. f5 Qd4 $11) 53... Qe2 $1
{[%emt 0:00:46]} 54. Kh3 {[%emt 0:01:14] aiming for Qf6+.} Qd3+ $2 {[%emt 0:01:
09] This move loses the game for Black.} (54... Qf1 $14 55. Qf6+ Kg8) 55. Kh4
$18 {[%emt 0:00:42] White threatens Qf6+ and mate.} Qe4 {[%emt 0:00:33]} 56. g4
{[%emt 0:00:42] White mates.} Kg8 {[%emt 0:01:10]} 57. Qf6 {[%emt 0:00:13]}
Qh1+ {[%emt 0:00:11]} 58. Kg5 {[%emt 0:00:08]} Qd5 {[%emt 0:00:12]} 59. Qg6 {
[%emt 0:01:35]} Kf8 {[%emt 0:00:00]} 60. Qd6+ {[%emt 0:00:07] Weighted Error
Value: White=0.22 (precise) / Black=0.25 (precise)} 1-0

[Event "44th Chess Olympiad Open 2022"]
[Site "Chennai"]
[Date "2022.08.08"]
[Round "10.4"]
[White "Narayanan.S.L"]
[Black "Daneshvar, Bardiya"]
[Result "1-0"]
[WhiteElo "2659"]
[BlackElo "2490"]
[Annotator "RC"]
[PlyCount "179"]
[EventDate "2022.??.??"]
[TimeControl "60"]

1. d4 {[%emt 0:00:04]} Nf6 {[%emt 0:00:07]} 2. c4 {[%emt 0:00:06]} g6 {[%emt 0:
00:00]} 3. Nc3 {[%emt 0:00:27]} d5 {[%emt 0:00:04]} 4. cxd5 {[%emt 0:01:06]}
Nxd5 {[%emt 0:00:08]} 5. e4 {[%emt 0:00:19]} Nxc3 {[%emt 0:00:06]} 6. bxc3 {
[%emt 0:00:05]} Bg7 {[%emt 0:00:04]} 7. Bc4 {[%emt 0:00:42]} c5 {[%emt 0:01:09]
} 8. Ne2 {[%emt 0:00:06]} O-O {[%emt 0:01:21]} 9. Be3 {[%emt 0:01:15]} Nc6 {
[%emt 0:00:36]} 10. O-O {[%emt 0:00:17]} b6 {[%emt 0:01:10]} 11. Qd2 {[%emt 0:
00:00]} Bb7 {[%emt 0:02:10]} 12. Rac1 {[%emt 0:06:49]} cxd4 {[%emt 0:06:51]}
13. cxd4 {[%emt 0:00:00]} Na5 {[%emt 0:01:29]} 14. Bd3 {[%emt 0:00:00]} Qd7 {
[%emt 0:01:22]} 15. h4 {[%emt 0:09:05]} Rac8 {[%emt 0:03:13]} 16. h5 {[%emt 0:
00:00]} Rfd8 {[%emt 0:04:14]} 17. h6 {[%emt 0:00:00]} Bf8 {[%emt 0:26:50]} 18.
Qb2 {[%emt 0:30:36]} e6 {[%emt 0:00:00]} 19. Bg5 {[%emt 0:02:53]} Rxc1 {
[%emt 0:06:04]} 20. Rxc1 {[%emt 0:00:00]} Rc8 {[%emt 0:00:16]} 21. Rxc8 {
[%emt 0:09:13]} Qxc8 {[%emt 0:03:09]} 22. Nf4 {[%emt 0:05:34]} Nc4 {[%emt 0:00:
00]} 23. Qe2 {[%emt 0:00:00]} Nd6 {[%emt 0:04:30]} 24. e5 {[%emt 0:02:22]} Ne8
{[%emt 0:04:57]} 25. Be4 {[%emt 0:12:14]} Nc7 {[%emt 0:03:02]} 26. Qf3 {
[%emt 0:00:00]} Bxe4 {[%emt 0:14:35]} 27. Qxe4 {[%emt 0:00:00]} Na6 {[%emt 0:
00:00]} 28. d5 {[%emt 0:00:00]} Nc5 {[%emt 0:01:23]} 29. Qc4 {[%emt 0:03:58]}
exd5 {[%emt 0:02:18]} 30. Nxd5 {[%emt 0:00:00]} Qe6 {[%emt 0:07:58]} 31. Bf4 {
[%emt 0:05:32]} b5 {[%emt 0:00:00]} 32. Qd4 {[%emt 0:00:00]} Qf5 {[%emt 0:00:
00]} 33. Nf6+ {[%emt 0:00:49]} Kh8 {[%emt 0:00:00]} 34. Be3 {[%emt 0:00:40]}
Qd3 {[%emt 0:01:15]} 35. Qg4 {[%emt 0:01:32]} Ne6 {[%emt 0:00:59]} 36. Qf3 {
[%emt 0:00:17]} Qc3 {[%emt 0:00:40]} 37. Nd7 {[%emt 0:01:19]} Kg8 {[%emt 0:00:
00]} 38. Qb7 {[%emt 0:01:05]} Qc7 {[%emt 0:00:31]} 39. Qxb5 {[%emt 0:00:09]}
Be7 {[%emt 0:00:33]} 40. Nf6+ {[%emt 0:03:51]} Bxf6 {[%emt 0:00:08]} 41. exf6 {
[%emt 0:31:05]} Qc8 {[%emt 0:03:16]} 42. a4 {[%emt 0:00:00]} a6 {[%emt 0:00:31]
} 43. Qb6 {[%emt 0:00:00]} Qa8 {[%emt 0:03:26]} 44. a5 {[%emt 0:00:00]} Qc8 {
[%emt 0:01:03]} 45. Qd6 {[%emt 0:00:00]} Qa8 {[%emt 0:03:04]} 46. f3 {[%emt 0:
00:00]} Qc8 {[%emt 0:02:26]} 47. Bd2 {[%emt 0:00:00]} Qa8 {[%emt 0:06:22]} 48.
Kf2 {[%emt 0:00:00]} Qc8 {[%emt 0:01:05]} 49. Bb4 {[%emt 0:00:00]} Qc2+ {
[%emt 0:01:43]} 50. Kg3 {[%emt 0:00:00]} Qc8 {[%emt 0:00:39]} 51. Qb6 {[%emt 0:
00:00]} Qa8 {[%emt 0:02:15]} 52. Bd6 {[%emt 0:00:12]} Qc8 {[%emt 0:00:23]} 53.
Qa7 {[%emt 0:00:46]} Nd8 {[%emt 0:01:42]} 54. Qb6 {[%emt 0:03:02]} Ne6 {
[%emt 0:00:57]} 55. Kh2 {[%emt 0:01:47]} Qa8 {[%emt 0:02:21]} 56. Kh3 {[%emt 0:
00:00]} Qc8 {[%emt 0:01:22]} 57. Kg3 {[%emt 0:00:06]} Qa8 {[%emt 0:00:36]} 58.
Kf2 {[%emt 0:00:59]} Nd8 {[%emt 0:01:24]} 59. Ke3 {[%emt 0:00:30]} Nc6 {
[%emt 0:00:16]} 60. Qc7 {[%emt 0:01:15]} Qe8+ {[%emt 0:01:25]} 61. Kd3 {
[%emt 0:00:32]} Qa8 {[%emt 0:00:51]} 62. Kc4 {[%emt 0:00:36]} Nd8 {[%emt 0:00:
00]} 63. g3 {[%emt 0:00:53]} Nb7 {[%emt 0:01:35]} 64. Be7 {[%emt 0:00:12]} Kh8
{[%emt 0:00:30]} 65. Kd4 {[%emt 0:00:55]} Kg8 {[%emt 0:00:27]} 66. Ke5 {
[%emt 0:00:08]} Kh8 {[%emt 0:00:19]} 67. f4 {[%emt 0:00:20]} Kg8 {[%emt 0:00:
00]} 68. g4 {[%emt 0:00:48]} Kh8 {[%emt 0:00:04]} 69. g5 {[%emt 0:01:14]} Kg8 {
[%emt 0:00:06]} 70. f5 {[%emt 0:00:15]} gxf5 {[%emt 0:00:23]} 71. Kxf5 {
[%emt 0:00:26]} Kh8 {[%emt 0:00:14]} 72. Kf4 {[%emt 0:00:41]} Kg8 {[%emt 0:00:
00]} 73. Ke3 {[%emt 0:00:12]} Kh8 {[%emt 0:00:26]} 74. Kd2 {[%emt 0:00:45]} Kg8
{[%emt 0:00:24]} 75. Kc3 {[%emt 0:00:22]} Kh8 {[%emt 0:00:09]} 76. Kb4 {
[%emt 0:00:19]} Kg8 {[%emt 0:00:09]} 77. Ka3 {[%emt 0:01:32]} Kh8 {[%emt 0:00:
00]} 78. Bb4 {[%emt 0:00:52]} Nd8 {[%emt 0:00:56]} 79. Bc3 {[%emt 0:00:06]} Kg8
{[%emt 0:01:07]} 80. Qe7 {[%emt 0:00:53]} Nc6 {[%emt 0:00:58]} 81. Qd7 {
[%emt 0:00:22]} Na7 {[%emt 0:00:44]} 82. g6 {[%emt 0:00:16]} Nb5+ {[%emt 0:00:
00]} 83. Kb3 {[%emt 0:00:11]} hxg6 {[%emt 0:00:36]} 84. h7+ {[%emt 0:00:03]}
Kxh7 {[%emt 0:00:07]} 85. Qxf7+ {[%emt 0:00:04]} Kh6 {[%emt 0:00:08]} 86. Bd2+
{[%emt 0:00:29]} Kh5 {[%emt 0:00:06]} 87. Qh7+ {[%emt 0:00:10]} Kg4 {[%emt 0:
00:00]} 88. Qxg6+ {[%emt 0:00:03]} Kf3 {[%emt 0:00:48]} 89. Qd3+ {[%emt 0:00:
00]} Kg4 {[%emt 0:00:12]} 90. f7 {[%emt 0:00:07]} 1-0

[Event "44th Chess Olympiad Open 2022"]
[Site "Chennai"]
[Date "2022.08.08"]
[Round "10.4"]
[White "Idani, Pouya"]
[Black "Erigaisi Arjun"]
[Result "1/2-1/2"]
[WhiteElo "2641"]
[BlackElo "2689"]
[Annotator "TA"]
[PlyCount "60"]
[EventDate "2022.??.??"]
[TimeControl "60"]

{[%evp 20,60,25,18,22,4,18,20,18,14,12,7,17,5,10,4,12,0,0,0,0,0,0,0,0,0,0,0,0,
0,0,0,0,0,0,0,0,0,0,0,0,0,0]} 1. e4 {[%emt 0:00:01]} e5 {[%emt 0:00:06]} 2. Nf3
{[%emt 0:00:05]} Nc6 {[%emt 0:00:06]} 3. Bb5 {[%emt 0:00:04]} Nf6 {[%emt 0:00:
00]} 4. O-O {[%emt 0:04:02][%cal Yh1f1,Yf1e1,Ye1e5]} Nxe4 {[%emt 0:00:00]} 5.
Re1 {[%emt 0:03:07]} Nd6 {[%emt 0:00:00]} 6. Nxe5 {[%emt 0:00:50]} Be7 {
[%emt 0:00:00]} 7. Bf1 {[%emt 0:00:03]} Nxe5 {[%emt 0:00:00]} 8. Rxe5 {[%emt 0:
00:03]} O-O {[%emt 0:00:00]} 9. d4 {[%emt 0:01:19]} Bf6 {[%emt 0:00:00]} 10.
Re1 {[%emt 0:00:11]} Nf5 {[%emt 0:00:00]} 11. c3 {[%emt 0:02:03]} d5 {[%emt 0:
00:00] The position is equal. C67: Ruy Lopez: Berlin Defence: 4 0-0 Nxe4.} 12.
Bf4 {[%emt 0:06:16]} Bg5 {[%emt 0:02:12]} 13. Bxg5 {[%emt 0:00:00]} Qxg5 {
[%emt 0:05:21]} 14. Nd2 {[%emt 0:00:00]} c6 {[%emt 0:03:12]} 15. Nf3 {[%emt 0:
10:52]} Qd8 {[%emt 0:08:03]} 16. Bd3 {[%emt 0:00:00]} Nd6 {[%emt 0:00:00]} 17.
Qc2 {[%emt 0:00:00]} g6 {[%emt 0:12:32] [#]} 18. h3 $146 {[%emt 0:00:00]} ({
Predecessor:} 18. Qd2 Bf5 19. Qh6 f6 20. Bxf5 Nxf5 21. Qf4 Qd6 22. Qxd6 {
½-½ (22) Li,H (2247)-Short,P (2283) Ennis 2017}) 18... Bf5 {[%emt 0:02:06]}
19. Bxf5 {[%emt 0:00:10]} Nxf5 {[%emt 0:00:00]} 20. Re2 {[%emt 0:00:12]} Re8 {
[%emt 0:00:00]} 21. Rae1 {[%emt 0:04:19][%cal Ya1e1,Ye1e7,Ye7d7]} Rxe2 {
[%emt 0:00:00]} 22. Qxe2 {[%emt 0:07:13]} Nd6 {[%emt 0:08:32]} 23. Qe7 {
[%emt 0:02:04]} Qxe7 {[%emt 0:00:00]} 24. Rxe7 $11 {[%emt 0:00:07] Endgame
aiming for Rd7. KRN-KRN} Kf8 {[%emt 0:09:18]} 25. Rd7 {[%emt 0:01:03] [#]
Hoping for Ne5.} Ke8 {[%emt 0:00:00]} 26. Ne5 {[%emt 0:08:03]} ({But not} 26.
Rxd6 Ke7 27. Rxc6 bxc6 $17) 26... Rd8 {[%emt 0:00:00]} 27. Rc7 {[%emt 0:00:00]}
Rc8 {[%emt 0:00:00]} 28. Rd7 {[%emt 0:00:04]} Rd8 {[%emt 0:00:49]} 29. Rc7 {
[%emt 0:02:22]} Rc8 {[%emt 0:00:00]} 30. Rd7 {[%emt 0:00:10]} Rd8 {[%emt 0:00:
00] A rather calm draw. Weighted Error Value: White=0.03 (flawless) /Black=0.
01 (flawless)} 1/2-1/2

[Event "44th Chess Olympiad Open 2022"]
[Site "Chennai"]
[Date "2022.08.08"]
[Round "10.5"]
[White "Van Foreest, Jorden"]
[Black "Ivic, Velimir"]
[Result "1/2-1/2"]
[WhiteElo "2678"]
[BlackElo "2581"]
[Annotator "RC"]
[PlyCount "81"]
[EventDate "2022.??.??"]
[TimeControl "60"]

1. Nf3 {[%emt 0:00:04]} d5 {[%emt 0:00:34]} 2. g3 {[%emt 0:00:24]} g6 {[%emt 0:
00:00]} 3. Bg2 {[%emt 0:00:24]} Bg7 {[%emt 0:00:08]} 4. d4 {[%emt 0:00:37]} Nf6
{[%emt 0:00:12]} 5. O-O {[%emt 0:00:28]} O-O {[%emt 0:00:12]} 6. c3 {[%emt 0:
00:00]} c6 {[%emt 0:06:33]} 7. a4 {[%emt 0:01:37]} a5 {[%emt 0:01:22]} 8. Nbd2
{[%emt 0:00:33]} Bg4 {[%emt 0:09:33]} 9. h3 {[%emt 0:01:48]} Bxf3 {[%emt 0:00:
00]} 10. exf3 {[%emt 0:05:54]} Nbd7 {[%emt 0:03:06]} 11. f4 {[%emt 0:02:49]} e6
{[%emt 0:02:21]} 12. Nf3 {[%emt 0:03:08]} b5 {[%emt 0:02:48]} 13. Ne5 {[%emt 0:
00:00]} Qc7 {[%emt 0:02:55]} 14. Qe2 {[%emt 0:02:29]} Rab8 {[%emt 0:00:27]} 15.
Be3 {[%emt 0:06:39]} Rfc8 {[%emt 0:04:31]} 16. g4 {[%emt 0:13:42]} Ne8 {
[%emt 0:14:37]} 17. axb5 {[%emt 0:00:00]} cxb5 {[%emt 0:02:46]} 18. f5 {
[%emt 0:00:00]} Nxe5 {[%emt 0:07:55]} 19. dxe5 {[%emt 0:00:00]} Qxe5 {[%emt 0:
00:00]} 20. fxe6 {[%emt 0:03:02]} Qxe6 {[%emt 0:00:55]} 21. Qd3 {[%emt 0:03:02]
} d4 {[%emt 0:08:23]} 22. Bxd4 {[%emt 0:06:22]} Rd8 {[%emt 0:07:41]} 23. Rxa5 {
[%emt 0:05:04]} Bxd4 {[%emt 0:00:24]} 24. cxd4 {[%emt 0:00:05]} Qb6 {[%emt 0:
00:00]} 25. Rfa1 {[%emt 0:02:27]} Qxd4 {[%emt 0:07:06]} 26. Qxd4 {[%emt 0:00:
00]} Rxd4 {[%emt 0:00:04]} 27. Ra8 {[%emt 0:01:14]} Rbd8 {[%emt 0:02:05]} 28.
Bc6 {[%emt 0:19:56]} Nc7 {[%emt 0:01:59]} 29. Rxd8+ {[%emt 0:00:05]} Rxd8 {
[%emt 0:00:03]} 30. Ra7 {[%emt 0:00:06]} Ne6 {[%emt 0:00:46]} 31. Bd7 {[%emt 0:
00:00]} Nf4 {[%emt 0:05:44]} 32. Kh2 {[%emt 0:02:06]} b4 {[%emt 0:01:59]} 33.
b3 {[%emt 0:01:27]} Nd3 {[%emt 0:02:09]} 34. Bb5 {[%emt 0:01:28]} Rd4 {[%emt 0:
00:00]} 35. Kg3 {[%emt 0:00:59]} g5 {[%emt 0:00:49]} 36. Ra5 {[%emt 0:03:21]}
Ne5 {[%emt 0:02:30]} 37. Bc4 {[%emt 0:01:45]} Nxc4 {[%emt 0:00:12]} 38. Rxg5+ {
[%emt 0:00:10]} Kf8 {[%emt 0:00:09]} 39. bxc4 {[%emt 0:00:40]} Rxc4 {[%emt 0:
00:00]} 40. Rb5 {[%emt 0:00:05]} Kg7 {[%emt 0:01:25]} 41. Rb6 {[%emt 0:03:30]}
1/2-1/2

[Event "44th Chess Olympiad Open 2022"]
[Site "Chennai"]
[Date "2022.08.08"]
[Round "10.5"]
[White "Indjic, Aleksandar"]
[Black "Giri, Anish"]
[Result "1/2-1/2"]
[WhiteElo "2620"]
[BlackElo "2760"]
[Annotator "TA"]
[PlyCount "86"]
[EventDate "2022.??.??"]
[TimeControl "60"]

{[%evp 13,86,9,18,12,20,22,30,29,27,15,29,0,0,1,0,-10,-23,-21,0,-63,-67,-59,1,
0,-12,0,-18,-123,-123,-133,-139,-118,-35,-60,-50,-45,-62,-65,-85,-272,-272,
-237,-263,-207,-189,-184,-168,-177,-42,-55,-56,-56,-47,-54,-14,-18,-16,-14,-18,
-18,-18,-14,0,0,0,0,0,0,0,0,0,0,0,0,0]} 1. d4 {[%emt 0:01:08]} d5 {[%emt 0:00:
00]} 2. c4 {[%emt 0:00:31]} c6 {[%emt 0:00:07]} 3. Nc3 {[%emt 0:01:11]} Nf6 {
[%emt 0:00:09]} 4. Nf3 {[%emt 0:00:26]} e6 {[%emt 0:00:11]} 5. Bg5 {[%emt 0:00:
00]} h6 {[%emt 0:00:08]} 6. Bxf6 {[%emt 0:00:46]} Qxf6 {[%emt 0:00:07]} 7. e3 {
[%emt 0:00:09]} g6 {[%emt 0:00:24]} 8. Ne5 {[%emt 0:01:58] D43: Semi-Slav: 5
Bg5 h6.} Bg7 {[%emt 0:00:44]} 9. f4 {[%emt 0:00:18]} O-O {[%emt 0:00:14][%cal
Yc6c5]} 10. h4 {[%emt 0:00:35] [#] White has an edge.} Qe7 $5 $146 {[%emt 0:00:
00] New and interesting.} ({Predecessor:} 10... c5 11. Qd2 Nc6 12. O-O-O Rd8
13. g4 cxd4 14. exd4 dxc4 15. Qe3 Qe7 16. Bxc4 Bd7 {½-½ (51) Adhiban,B (2639)
-Robson,R (2670) Douglas 2019}) 11. g4 {[%emt 0:02:17]} c5 {[%emt 0:01:00]} 12.
Qd2 {[%emt 0:01:42]} (12. Qf3 $5 {[%cal Rc4d5]}) 12... dxc4 {[%emt 0:11:19]}
13. O-O-O {[%emt 0:05:37]} (13. Nxc4 cxd4 14. exd4 Rd8 $19) 13... Nc6 {[%emt 0:
00:26]} 14. Bg2 {[%emt 0:06:21]} cxd4 {[%emt 0:10:34]} 15. exd4 {[%emt 0:00:08]
[%cal Ye3d4,Yd4d5]} Bd7 {[%emt 0:00:09]} 16. g5 {[%emt 0:07:42]} ({Better is} 
16. h5 $11) 16... h5 $1 $15 {[%emt 0:04:15]} 17. Rhe1 {[%emt 0:00:48]} Rac8 {
[%emt 0:12:59]} ({Black should play} 17... Rfd8 $15) 18. Bxc6 {[%emt 0:06:11]}
Bxc6 {[%emt 0:07:07]} 19. d5 {[%emt 0:00:13]} Rfd8 {[%emt 0:01:05]} 20. f5 {
[%emt 0:05:48]} (20. Qf2 $1 $11 Bxd5 21. Nxd5 Rxd5 22. Rxd5 exd5 23. Nc6 (23.
Nxg6 Bxb2+ 24. Kd1 Qc5 $17)) 20... gxf5 $17 {[%emt 0:00:00] And now ...Rxd5
would win.} 21. g6 {[%emt 0:00:00] [#]} fxg6 {[%emt 0:00:00]} (21... Qxh4 $2
22. gxf7+ Kh7 23. Rh1 $18) 22. Nxg6 {[%emt 0:08:08]} Qf6 {[%emt 0:02:16]} (
22... Qf7 $17 23. Qg5 Bxd5 24. Nxd5 Rxd5 25. Rxd5 (25. Ne7+ Kh7 $17) 25... exd5
) 23. Nf4 $15 {[%emt 0:04:19] Pair of Knights!} Bxd5 {[%emt 0:06:54]} (23...
Qxh4 $2 24. Nxe6 Qf6 25. Nxg7 (25. Nxd8 Bh6 $15) (25. Rg1 Qxe6 26. dxe6 Rxd2
$11) 25... Kxg7 26. Qg2+ (26. Re6 $2 Qxe6 27. Rg1+ Kf8 $19) 26... Kh7 27. dxc6
bxc6 28. Rh1 Rxd1+ 29. Nxd1 $18) 24. Ncxd5 {[%emt 0:00:00]} exd5 {[%emt 0:07:
18]} 25. Nxh5 {[%emt 0:00:51]} Qh6 {[%emt 0:00:24]} ({Of course not} 25... Qxh4
26. Nxg7 Kxg7 27. Rh1 $11) 26. Re7 $2 {[%emt 0:00:07]} Bxb2+ $1 $19 {[%emt 0:
03:06]} (26... Qxh5 27. Rg1 d4 28. Rexg7+ Kh8 29. Qf4 $18) 27. Kb1 {[%emt 0:00:
03]} Qxd2 {[%emt 0:01:55]} ({Worse is} 27... Qxh5 28. Rg1+ Kf8 29. Qxb2 Kxe7
30. Qe5+ Kd7 31. Qxd5+ Ke7 32. Qe5+ Kd7 33. Qd5+ Ke7 34. Qe5+ Kd7 35. Qd5+ $11)
28. Rxd2 {[%emt 0:00:02]} Kf8 {[%emt 0:02:37]} 29. Rde2 {[%emt 0:05:28]} c3 {
[%emt 0:10:59]} 30. Rxb7 {[%emt 0:05:54]} c2+ {[%emt 0:00:00]} (30... d4 $19 {
White must now prevent ...d3.} 31. Nf6 Rd6 32. Nd7+ Kg8 33. Rg2+ Kh8) 31. Rxc2
$15 {[%emt 0:00:04]} Rxc2 {[%emt 0:00:01]} 32. Kxc2 {[%emt 0:00:06] Endgame
KRB-KRN} Be5 {[%emt 0:00:02] Prevents Nf4. Threatens to win with ...Rc8+.} 33.
Rxa7 {[%emt 0:14:21]} Rc8+ {[%emt 0:00:30]} (33... Rd6 $5 {[%cal Rd6h6]} 34.
Ra4 Rc6+ 35. Kd3 Rc3+ 36. Ke2 Rc4 $17) 34. Kd1 {[%emt 0:00:09] The position is
equal.} Rc4 {[%emt 0:02:25]} 35. Rd7 {[%emt 0:00:00]} Rd4+ {[%emt 0:00:31]} 36.
Ke2 {[%emt 0:01:29]} Ke8 {[%emt 0:01:22]} 37. Rb7 {[%emt 0:02:38]} Kf8 {
[%emt 0:02:10] [#] ...Re4+ is the strong threat.} 38. Rd7 {[%emt 0:00:16]} Re4+
{[%emt 0:00:32]} 39. Kf2 {[%emt 0:01:10]} d4 {[%emt 0:00:26]} 40. Ng3 {[%emt 0:
00:46]} Rxh4 {[%emt 0:00:18] aiming for ... Rh2+.} 41. Rd5 {[%emt 0:30:10]}
Rh2+ {[%emt 0:31:32]} 42. Kf3 {[%emt 0:00:14]} Bxg3 {[%emt 0:00:07]} 43. Kxg3 {
[%emt 0:00:05]} Rxa2 {[%emt 0:00:04] Whites escaped into a draw. Weighted
Error Value: White=0.16 (very precise) /Black=0.16 (very precise)} 1/2-1/2